[Event "Late-Titled-Tuesday-Blitz-September-26-2023"]
[Site "Chess.com"]
[Date "2023.09.26"]
[Round "3"]
[White "Rital44"]
[Black "Dewarfd"]
[Result "1-0"]
[WhiteElo "2519"]
[BlackElo "2220"]
[TimeControl "180+1"]
[EndTime "14:28:14 PDT"]
[Termination "Rital44 won on time"]

1. Nf3 {[%clk 0:03:00.9]} 1... d5 {[%clk 0:02:59.3]} 2. e3 {[%clk 0:03:00.7]}
2... c5 {[%clk 0:02:58.5]} 3. b3 {[%clk 0:02:59.4]} 3... Nf6 {[%clk 0:02:58.8]}
4. Bb2 {[%clk 0:02:58.7]} 4... e6 {[%clk 0:02:59.1]} 5. c4 {[%clk 0:02:47.7]}
5... Be7 {[%clk 0:02:58.1]} 6. cxd5 {[%clk 0:02:46.4]} 6... exd5 {[%clk
0:02:57.4]} 7. d4 {[%clk 0:02:46.9]} 7... O-O {[%clk 0:02:51.1]} 8. Be2 {[%clk
0:02:46.4]} 8... Nc6 {[%clk 0:02:50.9]} 9. O-O {[%clk 0:02:46.5]} 9... Bf5
{[%clk 0:02:50.6]} 10. Nc3 {[%clk 0:02:46.4]} 10... Rc8 {[%clk 0:02:47.7]} 11.
Na4 {[%clk 0:02:46]} 11... cxd4 {[%clk 0:02:45.4]} 12. Nxd4 {[%clk 0:02:46.1]}
12... Nxd4 {[%clk 0:02:42]} 13. Bxd4 {[%clk 0:02:47]} 13... b6 {[%clk
0:02:34.5]} 14. Ba6 {[%clk 0:02:45]} 14... Rb8 {[%clk 0:02:26.7]} 15. Qf3 {[%clk
0:02:42.4]} 15... Bg4 {[%clk 0:02:04.5]} 16. Qg3 {[%clk 0:02:36.7]} 16... Bf5
{[%clk 0:01:48.8]} 17. f3 {[%clk 0:02:27.7]} 17... Bd6 {[%clk 0:01:39.2]} 18.
Qe1 {[%clk 0:02:22.1]} 18... Qe7 {[%clk 0:01:35.8]} 19. Rd1 {[%clk 0:02:10.7]}
19... Bc2 {[%clk 0:01:32.1]} 20. Rd2 {[%clk 0:01:59.8]} 20... Bg6 {[%clk
0:01:30.6]} 21. Bxf6 {[%clk 0:01:48.3]} 21... Qxf6 {[%clk 0:01:30.2]} 22. Rxd5
{[%clk 0:01:48.8]} 22... Rbd8 {[%clk 0:01:21.8]} 23. e4 {[%clk 0:01:44.8]} 23...
Qf4 {[%clk 0:01:14.9]} 24. g3 {[%clk 0:01:40.9]} 24... Qh6 {[%clk 0:01:09]} 25.
Kg2 {[%clk 0:01:31.7]} 25... f5 {[%clk 0:00:59]} 26. e5 {[%clk 0:01:26.4]} 26...
Bb4 {[%clk 0:00:44]} 27. Qxb4 {[%clk 0:01:20.6]} 27... Rxd5 {[%clk 0:00:44.1]}
28. Bc4 {[%clk 0:01:21.4]} 28... Bf7 {[%clk 0:00:39.6]} 29. Bxd5 {[%clk
0:01:20.7]} 29... Bxd5 {[%clk 0:00:40.5]} 30. Qd4 {[%clk 0:01:19.1]} 30... Rd8
{[%clk 0:00:37.5]} 31. Kg1 {[%clk 0:01:17]} 31... Rd7 {[%clk 0:00:35.5]} 32. Nc3
{[%clk 0:01:15.5]} 32... Be6 {[%clk 0:00:33.3]} 33. Qf4 {[%clk 0:01:10.3]} 33...
Qxf4 {[%clk 0:00:32.6]} 34. gxf4 {[%clk 0:01:10.9]} 34... Rd2 {[%clk 0:00:30.1]}
35. Rf2 {[%clk 0:01:09.9]} 35... Rd3 {[%clk 0:00:29.2]} 36. Nb5 {[%clk
0:01:05.7]} 36... a6 {[%clk 0:00:24.7]} 37. Nc7 {[%clk 0:00:56.3]} 37... Kf7
{[%clk 0:00:21.8]} 38. Nxa6 {[%clk 0:00:51.9]} 38... Rd4 {[%clk 0:00:20.8]} 39.
Rc2 {[%clk 0:00:46.4]} 39... Rxf4 {[%clk 0:00:20.4]} 40. Kf2 {[%clk 0:00:44.7]}
40... Rh4 {[%clk 0:00:19.7]} 41. Kg3 {[%clk 0:00:43.1]} 41... Rd4 {[%clk
0:00:19.7]} 42. Rc7+ {[%clk 0:00:43.3]} 42... Kf8 {[%clk 0:00:19.1]} 43. Rc6
{[%clk 0:00:41.2]} 43... Kf7 {[%clk 0:00:19.2]} 44. Nc7 {[%clk 0:00:40.8]} 44...
Bd7 {[%clk 0:00:18.4]} 45. Rxb6 {[%clk 0:00:40.7]} 45... Rd2 {[%clk 0:00:18.5]}
46. e6+ {[%clk 0:00:41.1]} 46... Ke7 {[%clk 0:00:13.5]} 47. exd7 {[%clk
0:00:42]} 47... Kxd7 {[%clk 0:00:13.9]} 48. Nb5 {[%clk 0:00:38]} 48... Rxa2
{[%clk 0:00:13.2]} 49. Nd4 {[%clk 0:00:38.6]} 49... f4+ {[%clk 0:00:12.3]} 50.
Kxf4 {[%clk 0:00:37.8]} 50... Rxh2 {[%clk 0:00:12.5]} 51. b4 {[%clk 0:00:37.3]}
51... h6 {[%clk 0:00:11.9]} 52. Rb7+ {[%clk 0:00:33.8]} 52... Kc8 {[%clk
0:00:12.1]} 53. Rxg7 {[%clk 0:00:32.9]} 53... Kd8 {[%clk 0:00:05.7]} 54. Ke5
{[%clk 0:00:31.4]} 54... Ke8 {[%clk 0:00:04.5]} 55. f4 {[%clk 0:00:29.5]} 55...
Kf8 {[%clk 0:00:03.6]} 56. Ne6+ {[%clk 0:00:29.6]} 56... Ke8 {[%clk 0:00:03.2]}
57. Kf6 {[%clk 0:00:30.5]} 1-0

[Event "Late-Titled-Tuesday-Blitz-September-26-2023"]
[Site "Chess.com"]
[Date "2023.09.26"]
[Round "3"]
[White "pirulillo"]
[Black "FrankDux44"]
[Result "0-1"]
[WhiteElo "2365"]
[BlackElo "2574"]
[TimeControl "180+1"]
[EndTime "14:28:16 PDT"]
[Termination "FrankDux44 won by resignation"]

1. e4 {[%clk 0:02:43.6]} 1... c5 {[%clk 0:02:59.8]} 2. Nf3 {[%clk 0:02:36.4]}
2... d6 {[%clk 0:02:59.9]} 3. d4 {[%clk 0:02:36]} 3... cxd4 {[%clk 0:03:00.8]}
4. Nxd4 {[%clk 0:02:35.9]} 4... Nf6 {[%clk 0:03:01.3]} 5. Nc3 {[%clk 0:02:35.6]}
5... g6 {[%clk 0:03:02]} 6. Be2 {[%clk 0:02:35.4]} 6... Bg7 {[%clk 0:03:01.9]}
7. O-O {[%clk 0:02:35]} 7... O-O {[%clk 0:03:01.8]} 8. Bg5 {[%clk 0:02:34.5]}
8... Nc6 {[%clk 0:03:01.9]} 9. Nb3 {[%clk 0:02:34.5]} 9... h6 {[%clk 0:03:00]}
10. Bh4 {[%clk 0:02:34.2]} 10... g5 {[%clk 0:02:59.9]} 11. Bg3 {[%clk
0:02:34.2]} 11... Be6 {[%clk 0:02:59.9]} 12. Bf3 {[%clk 0:02:25.9]} 12... a5
{[%clk 0:02:59.4]} 13. a4 {[%clk 0:02:17.5]} 13... Nb4 {[%clk 0:02:58.9]} 14.
Nd4 {[%clk 0:02:15.4]} 14... Bd7 {[%clk 0:02:54.1]} 15. e5 {[%clk 0:01:59.6]}
15... dxe5 {[%clk 0:02:53.7]} 16. Bxe5 {[%clk 0:01:59.1]} 16... Qb6 {[%clk
0:02:53.2]} 17. Ndb5 {[%clk 0:01:45.8]} 17... Bc6 {[%clk 0:02:48]} 18. Bd4
{[%clk 0:01:14.2]} 18... Qd8 {[%clk 0:02:45.5]} 19. Bxf6 {[%clk 0:00:59.6]}
19... Bxf6 {[%clk 0:02:44.1]} 20. Bxc6 {[%clk 0:00:51.1]} 20... bxc6 {[%clk
0:02:42.7]} 21. Na3 {[%clk 0:00:51.2]} 21... Qxd1 {[%clk 0:02:31]} 22. Nxd1
{[%clk 0:00:43.1]} 22... Rfd8 {[%clk 0:02:31.9]} 23. c3 {[%clk 0:00:41.6]} 23...
Nd3 {[%clk 0:02:30.2]} 24. Nc4 {[%clk 0:00:40]} 24... Nc5 {[%clk 0:02:27.8]} 25.
Nde3 {[%clk 0:00:38.3]} 25... e6 {[%clk 0:02:02.1]} 26. g3 {[%clk 0:00:33.6]}
26... Rd3 {[%clk 0:01:57.4]} 27. Rfd1 {[%clk 0:00:30.9]} 27... Rxd1+ {[%clk
0:01:53.2]} 28. Nxd1 {[%clk 0:00:31.8]} 28... Bd8 {[%clk 0:01:49.3]} 29. Nde3
{[%clk 0:00:25.1]} 29... Bc7 {[%clk 0:01:49.8]} 30. Rd1 {[%clk 0:00:23]} 30...
Nxa4 {[%clk 0:01:48.2]} 31. Ra1 {[%clk 0:00:22.4]} 31... Nc5 {[%clk 0:01:45.4]}
32. Nxa5 {[%clk 0:00:21.7]} 32... Rxa5 {[%clk 0:01:38.1]} 33. Rxa5 {[%clk
0:00:21.8]} 33... Bxa5 {[%clk 0:01:39]} 34. b4 {[%clk 0:00:22.2]} 34... Bb6
{[%clk 0:01:31.5]} 35. bxc5 {[%clk 0:00:17.2]} 35... Bxc5 {[%clk 0:01:32.4]} 36.
Nc4 {[%clk 0:00:17.2]} 36... Kg7 {[%clk 0:01:28.9]} 37. Ne5 {[%clk 0:00:16.9]}
37... f6 {[%clk 0:01:20]} 38. Nxc6 {[%clk 0:00:17]} 38... Kf7 {[%clk 0:01:20.6]}
39. Kg2 {[%clk 0:00:17.3]} 39... Ke8 {[%clk 0:01:20]} 40. Na5 {[%clk 0:00:17.2]}
40... Kd7 {[%clk 0:01:19.1]} 41. Nc4 {[%clk 0:00:17.4]} 41... Kc6 {[%clk
0:01:19.4]} 42. f4 {[%clk 0:00:16.8]} 42... Kd5 {[%clk 0:01:18.6]} 43. Nd2
{[%clk 0:00:16.9]} 43... Bb6 {[%clk 0:01:16.1]} 44. Kf3 {[%clk 0:00:16.7]} 44...
Ba5 {[%clk 0:01:15.7]} 45. Ne4 {[%clk 0:00:16.1]} 45... f5 {[%clk 0:01:13.5]}
46. Nf6+ {[%clk 0:00:16]} 46... Kd6 {[%clk 0:01:11.6]} 47. fxg5 {[%clk
0:00:15.6]} 47... hxg5 {[%clk 0:01:11.9]} 48. Nh7 {[%clk 0:00:16.1]} 48... g4+
{[%clk 0:01:11.5]} 49. Kf4 {[%clk 0:00:14.3]} 49... Bxc3 {[%clk 0:01:12.4]} 50.
Kg5 {[%clk 0:00:11.7]} 50... Kd5 {[%clk 0:01:08.6]} 51. Nf8 {[%clk 0:00:10.2]}
51... Bd4 {[%clk 0:01:00.7]} 52. Ng6 {[%clk 0:00:08.3]} 52... Bg1 {[%clk
0:00:50.3]} 53. h4 {[%clk 0:00:07.9]} 53... gxh3 {[%clk 0:00:49.9]} 54. Nf4+
{[%clk 0:00:07.9]} 54... Ke4 {[%clk 0:00:49.4]} 55. Nxh3 {[%clk 0:00:08.8]}
55... Be3+ {[%clk 0:00:48.8]} 56. Kh4 {[%clk 0:00:08.9]} 56... e5 {[%clk
0:00:48.1]} 57. g4 {[%clk 0:00:08.6]} 57... f4 {[%clk 0:00:46.1]} 58. g5 {[%clk
0:00:08.8]} 58... Kf5 {[%clk 0:00:42.8]} 59. Kh5 {[%clk 0:00:08.7]} 59... e4
{[%clk 0:00:42.7]} 60. g6 {[%clk 0:00:08.9]} 60... Bd4 {[%clk 0:00:43]} 61. Kh6
{[%clk 0:00:08.8]} 61... e3 {[%clk 0:00:42.2]} 62. g7 {[%clk 0:00:07.5]} 62...
Bxg7+ {[%clk 0:00:41.2]} 63. Kxg7 {[%clk 0:00:08.4]} 63... Kg4 {[%clk
0:00:36.8]} 64. Ng1 {[%clk 0:00:07.6]} 64... f3 {[%clk 0:00:36.8]} 65. Kf6
{[%clk 0:00:06.6]} 65... e2 {[%clk 0:00:36]} 66. Nxe2 {[%clk 0:00:07.5]} 66...
fxe2 {[%clk 0:00:33.2]} 67. Ke5 {[%clk 0:00:08.4]} 67... e1=Q+ {[%clk
0:00:32.5]} 0-1

[Event "Late-Titled-Tuesday-Blitz-September-26-2023"]
[Site "Chess.com"]
[Date "2023.09.26"]
[Round "3"]
[White "Agibileg"]
[Black "slorovel"]
[Result "1-0"]
[WhiteElo "2689"]
[BlackElo "2468"]
[TimeControl "180+1"]
[EndTime "14:28:20 PDT"]
[Termination "Agibileg won by resignation"]

1. d4 {[%clk 0:03:00]} 1... Nf6 {[%clk 0:02:56.3]} 2. c4 {[%clk 0:02:59.9]} 2...
d6 {[%clk 0:02:55.2]} 3. Nf3 {[%clk 0:02:59.5]} 3... Nbd7 {[%clk 0:02:53.6]} 4.
Nc3 {[%clk 0:02:59]} 4... e5 {[%clk 0:02:54.2]} 5. e4 {[%clk 0:02:59.1]} 5... g6
{[%clk 0:02:54.6]} 6. Be2 {[%clk 0:02:58]} 6... Bg7 {[%clk 0:02:55.2]} 7. O-O
{[%clk 0:02:58.5]} 7... O-O {[%clk 0:02:55.8]} 8. Be3 {[%clk 0:02:58]} 8... Qe7
{[%clk 0:02:56]} 9. d5 {[%clk 0:02:55.2]} 9... c5 {[%clk 0:02:56.5]} 10. Ne1
{[%clk 0:02:54]} 10... Kh8 {[%clk 0:02:54.2]} 11. Nd3 {[%clk 0:02:44]} 11... Ng8
{[%clk 0:02:54.4]} 12. a3 {[%clk 0:02:39.3]} 12... f5 {[%clk 0:02:54.9]} 13. f3
{[%clk 0:02:39.7]} 13... f4 {[%clk 0:02:53.9]} 14. Bf2 {[%clk 0:02:39.9]} 14...
g5 {[%clk 0:02:54.6]} 15. b4 {[%clk 0:02:39.7]} 15... b6 {[%clk 0:02:54.9]} 16.
Qa4 {[%clk 0:02:29.5]} 16... h5 {[%clk 0:02:47.2]} 17. Qc6 {[%clk 0:02:26.9]}
17... Ba6 {[%clk 0:02:37.8]} 18. bxc5 {[%clk 0:02:23.7]} 18... Nxc5 {[%clk
0:02:22.7]} 19. Nxc5 {[%clk 0:02:18.6]} 19... dxc5 {[%clk 0:02:14.4]} 20. d6
{[%clk 0:02:13]} 20... Qe6 {[%clk 0:02:12.5]} 21. Nd5 {[%clk 0:02:08.9]} 21...
Rac8 {[%clk 0:02:01.4]} 22. Nc7 {[%clk 0:02:01.2]} 22... Qg6 {[%clk 0:01:44.3]}
23. Rfd1 {[%clk 0:01:37.3]} 23... Rfd8 {[%clk 0:01:41.8]} 24. Qa4 {[%clk
0:01:28.7]} 24... Rxd6 {[%clk 0:01:36.1]} 25. Nxa6 {[%clk 0:01:25.3]} 25... Rd4
{[%clk 0:01:32.1]} 26. Bxd4 {[%clk 0:01:22.6]} 26... exd4 {[%clk 0:01:31.4]} 27.
Bd3 {[%clk 0:01:22.6]} 27... g4 {[%clk 0:01:30.2]} 28. Kh1 {[%clk 0:00:57.2]}
28... h4 {[%clk 0:01:29.1]} 29. Qd7 {[%clk 0:00:55.9]} 29... gxf3 {[%clk
0:01:03.8]} 30. gxf3 {[%clk 0:00:56.8]} 30... Qh5 {[%clk 0:01:02.4]} 31. Qg4
{[%clk 0:00:52.6]} 31... Qxg4 {[%clk 0:01:01.8]} 32. fxg4 {[%clk 0:00:53.5]}
32... Be5 {[%clk 0:01:00]} 33. a4 {[%clk 0:00:50.3]} 33... Nf6 {[%clk
0:00:56.5]} 34. h3 {[%clk 0:00:50.2]} 34... Nh7 {[%clk 0:00:53.5]} 35. Ra3
{[%clk 0:00:48.6]} 35... Ng5 {[%clk 0:00:53.4]} 36. Be2 {[%clk 0:00:48.9]} 36...
Nxe4 {[%clk 0:00:51.9]} 37. Kg2 {[%clk 0:00:40.1]} 37... Rd8 {[%clk 0:00:41]}
38. Bf3 {[%clk 0:00:24.7]} 38... Ng5 {[%clk 0:00:31.9]} 39. a5 {[%clk
0:00:23.8]} 39... b5 {[%clk 0:00:23.1]} 40. cxb5 {[%clk 0:00:20.4]} 40... c4
{[%clk 0:00:23.6]} 41. b6 {[%clk 0:00:20]} 41... axb6 {[%clk 0:00:23.2]} 42.
axb6 {[%clk 0:00:20.9]} 42... d3 {[%clk 0:00:22.9]} 43. Nc5 {[%clk 0:00:14.4]}
43... d2 {[%clk 0:00:19.7]} 44. Na4 {[%clk 0:00:11.2]} 44... c3 {[%clk
0:00:15.1]} 45. Nxc3 {[%clk 0:00:11.1]} 45... Nxf3 {[%clk 0:00:15.1]} 46. Kxf3
{[%clk 0:00:11.1]} 46... Rd3+ {[%clk 0:00:15.8]} 47. Ke4 {[%clk 0:00:09.3]}
47... Re3+ {[%clk 0:00:15.9]} 48. Kf5 {[%clk 0:00:07.1]} 48... Bxc3 {[%clk
0:00:16.2]} 49. b7 {[%clk 0:00:05.3]} 49... Be5 {[%clk 0:00:15.5]} 50. Rxe3
{[%clk 0:00:05]} 50... fxe3 {[%clk 0:00:15.8]} 51. Kxe5 {[%clk 0:00:04.8]} 51...
e2 {[%clk 0:00:15.8]} 52. b8=Q+ {[%clk 0:00:05.7]} 52... Kh7 {[%clk 0:00:15.6]}
53. Qa7+ {[%clk 0:00:04.3]} 53... Kh8 {[%clk 0:00:11.8]} 54. Qa8+ {[%clk
0:00:04.6]} 54... Kh7 {[%clk 0:00:11.8]} 55. Qe4+ {[%clk 0:00:04.8]} 55... Kh8
{[%clk 0:00:12.1]} 56. Qxe2 {[%clk 0:00:05.7]} 56... Kg8 {[%clk 0:00:12.4]} 57.
Qxd2 {[%clk 0:00:06.1]} 57... Kh7 {[%clk 0:00:13.3]} 1-0

[Event "Late-Titled-Tuesday-Blitz-September-26-2023"]
[Site "Chess.com"]
[Date "2023.09.26"]
[Round "3"]
[White "JoseRemolar"]
[Black "MikeSailer"]
[Result "1-0"]
[WhiteElo "2392"]
[BlackElo "2210"]
[TimeControl "180+1"]
[EndTime "14:28:21 PDT"]
[Termination "JoseRemolar won on time"]

1. d4 {[%clk 0:03:00.9]} 1... d5 {[%clk 0:02:57.1]} 2. c4 {[%clk 0:03:00.8]}
2... Bf5 {[%clk 0:02:57]} 3. Nc3 {[%clk 0:03:00]} 3... e6 {[%clk 0:02:57.7]} 4.
Qb3 {[%clk 0:02:58.3]} 4... Nc6 {[%clk 0:02:57.5]} 5. Nf3 {[%clk 0:02:55.9]}
5... Bb4 {[%clk 0:02:56.9]} 6. e3 {[%clk 0:02:51]} 6... Nf6 {[%clk 0:02:55.8]}
7. Bd2 {[%clk 0:02:50.6]} 7... a5 {[%clk 0:02:51.6]} 8. a3 {[%clk 0:02:36.5]}
8... Bxc3 {[%clk 0:02:50.4]} 9. Bxc3 {[%clk 0:02:36.5]} 9... Rb8 {[%clk
0:02:41.8]} 10. c5 {[%clk 0:02:13]} 10... O-O {[%clk 0:02:40]} 11. Bb5 {[%clk
0:02:09.7]} 11... Ne4 {[%clk 0:02:34.9]} 12. O-O {[%clk 0:02:08.2]} 12... Nxc3
{[%clk 0:02:34.1]} 13. bxc3 {[%clk 0:02:06.4]} 13... Ne7 {[%clk 0:02:28.2]} 14.
Nh4 {[%clk 0:01:56.7]} 14... Bg4 {[%clk 0:02:22.1]} 15. f3 {[%clk 0:01:37.7]}
15... Bh5 {[%clk 0:02:21]} 16. g4 {[%clk 0:01:37]} 16... Bg6 {[%clk 0:02:09.1]}
17. Ng2 {[%clk 0:01:34]} 17... c6 {[%clk 0:02:02.7]} 18. Be2 {[%clk 0:01:33.2]}
18... b6 {[%clk 0:02:02.9]} 19. cxb6 {[%clk 0:01:23.6]} 19... Qxb6 {[%clk
0:01:58.6]} 20. Qa2 {[%clk 0:00:58.4]} 20... Rb7 {[%clk 0:01:37.9]} 21. Rfc1
{[%clk 0:00:56.2]} 21... h6 {[%clk 0:01:26.8]} 22. Nf4 {[%clk 0:00:54.3]} 22...
Bh7 {[%clk 0:01:26.3]} 23. Bd3 {[%clk 0:00:53.1]} 23... c5 {[%clk 0:01:11.9]}
24. Bxh7+ {[%clk 0:00:49.5]} 24... Kxh7 {[%clk 0:01:12.3]} 25. Nd3 {[%clk
0:00:35.7]} 25... cxd4 {[%clk 0:01:08.5]} 26. cxd4 {[%clk 0:00:36.6]} 26... Rfb8
{[%clk 0:00:44.9]} 27. Nc5 {[%clk 0:00:31.1]} 27... Rc7 {[%clk 0:00:22.4]} 28.
Rcb1 {[%clk 0:00:21.9]} 28... Qa7 {[%clk 0:00:22.7]} 29. Rxb8 {[%clk 0:00:20]}
29... Qxb8 {[%clk 0:00:22]} 30. Na6 {[%clk 0:00:19.9]} 30... Qc8 {[%clk
0:00:10.9]} 31. Nxc7 {[%clk 0:00:19.8]} 31... Qxc7 {[%clk 0:00:10.8]} 32. Qb2
{[%clk 0:00:20.7]} 32... Ng6 {[%clk 0:00:10.2]} 33. Rc1 {[%clk 0:00:20.1]} 33...
Qd6 {[%clk 0:00:09.5]} 34. Qc3 {[%clk 0:00:20.3]} 34... Nh4 {[%clk 0:00:09.6]}
35. f4 {[%clk 0:00:17.4]} 35... f6 {[%clk 0:00:04.7]} 36. Qc5 {[%clk 0:00:14.9]}
36... Qb8 {[%clk 0:00:05.2]} 37. Qc2+ {[%clk 0:00:12.9]} 37... f5 {[%clk
0:00:04.8]} 38. gxf5 {[%clk 0:00:10.9]} 38... Nxf5 {[%clk 0:00:04.7]} 39. Kf2
{[%clk 0:00:11.4]} 39... Qd8 {[%clk 0:00:04]} 40. Ke2 {[%clk 0:00:09.3]} 40...
Qh4 {[%clk 0:00:04.5]} 41. Kd3 {[%clk 0:00:09.7]} 41... Qh3 {[%clk 0:00:04.4]}
42. Re1 {[%clk 0:00:09.8]} 42... Qf3 {[%clk 0:00:04.6]} 43. Kc3 {[%clk
0:00:07.6]} 43... Kh8 {[%clk 0:00:03.2]} 44. Qd3 {[%clk 0:00:07]} 44... Qf2
{[%clk 0:00:03.1]} 45. Qe2 {[%clk 0:00:07.2]} 45... Qh4 {[%clk 0:00:02.8]} 46.
Rb1 {[%clk 0:00:05.3]} 46... Qd8 {[%clk 0:00:02.1]} 47. Kd2 {[%clk 0:00:04.5]}
47... Qh4 {[%clk 0:00:01.7]} 48. Rb7 {[%clk 0:00:03.6]} 48... Qh3 {[%clk
0:00:01.8]} 49. Rb3 {[%clk 0:00:02.9]} 49... Qg4 {[%clk 0:00:02]} 50. Rb8+
{[%clk 0:00:03.1]} 50... Kh7 {[%clk 0:00:02.5]} 51. Qxg4 {[%clk 0:00:04]} 1-0

[Event "Late-Titled-Tuesday-Blitz-September-26-2023"]
[Site "Chess.com"]
[Date "2023.09.26"]
[Round "3"]
[White "K_alena13"]
[Black "GiorgianBarbosa"]
[Result "1-0"]
[WhiteElo "2216"]
[BlackElo "2358"]
[TimeControl "180+1"]
[EndTime "14:28:27 PDT"]
[Termination "K_alena13 won on time"]

1. Nf3 {[%clk 0:03:00.9]} 1... Nf6 {[%clk 0:02:37.8]} 2. c4 {[%clk 0:02:58.7]}
2... Nc6 {[%clk 0:02:37.2]} 3. Nc3 {[%clk 0:02:55.7]} 3... e5 {[%clk 0:02:37.3]}
4. d3 {[%clk 0:02:52.8]} 4... a6 {[%clk 0:02:33.9]} 5. g3 {[%clk 0:02:52.9]}
5... Bc5 {[%clk 0:02:34.3]} 6. Bg2 {[%clk 0:02:52.3]} 6... d6 {[%clk 0:02:33.4]}
7. O-O {[%clk 0:02:52.1]} 7... h5 {[%clk 0:02:33.6]} 8. h4 {[%clk 0:02:48.5]}
8... Bg4 {[%clk 0:02:33]} 9. a3 {[%clk 0:02:46.6]} 9... Qd7 {[%clk 0:02:32.2]}
10. b4 {[%clk 0:02:44.1]} 10... Ba7 {[%clk 0:02:32.2]} 11. Nd5 {[%clk
0:02:41.6]} 11... Nxd5 {[%clk 0:02:21.3]} 12. cxd5 {[%clk 0:02:42.5]} 12... Ne7
{[%clk 0:02:21]} 13. Qb3 {[%clk 0:02:29.7]} 13... Nf5 {[%clk 0:02:13.7]} 14. Kh2
{[%clk 0:02:15.6]} 14... Bxf3 {[%clk 0:01:56]} 15. exf3 {[%clk 0:02:15.4]} 15...
f6 {[%clk 0:01:45.3]} 16. Bh3 {[%clk 0:02:03.6]} 16... g6 {[%clk 0:01:44.5]} 17.
Qc2 {[%clk 0:01:53.3]} 17... Qf7 {[%clk 0:01:34.2]} 18. Qc4 {[%clk 0:01:48.1]}
18... Nd4 {[%clk 0:01:30.2]} 19. Kg2 {[%clk 0:01:44.4]} 19... f5 {[%clk
0:01:27.7]} 20. Be3 {[%clk 0:01:40.9]} 20... Qf6 {[%clk 0:01:20.9]} 21. Bxd4
{[%clk 0:01:40]} 21... Bxd4 {[%clk 0:01:18.6]} 22. Rae1 {[%clk 0:01:34.1]} 22...
O-O-O {[%clk 0:01:15.2]} 23. b5 {[%clk 0:01:30.3]} 23... a5 {[%clk 0:01:13.4]}
24. Rc1 {[%clk 0:01:21]} 24... Bb6 {[%clk 0:01:12.6]} 25. Rfe1 {[%clk
0:01:17.7]} 25... Kb8 {[%clk 0:01:10.3]} 26. d4 {[%clk 0:01:10.5]} 26... exd4
{[%clk 0:00:59.9]} 27. Re6 {[%clk 0:01:09.4]} 27... Qg7 {[%clk 0:00:52.9]} 28.
Rce1 {[%clk 0:01:08.4]} 28... Rhf8 {[%clk 0:00:49.1]} 29. f4 {[%clk 0:01:04.3]}
29... Rf6 {[%clk 0:00:43.8]} 30. Re7 {[%clk 0:01:01.5]} 30... Rf7 {[%clk
0:00:43.8]} 31. R7e6 {[%clk 0:00:54.6]} 31... Rdd7 {[%clk 0:00:39.6]} 32. R1e2
{[%clk 0:00:52.4]} 32... Rfe7 {[%clk 0:00:39.6]} 33. Qd3 {[%clk 0:00:49.5]}
33... Rxe6 {[%clk 0:00:34.9]} 34. Rxe6 {[%clk 0:00:47.9]} 34... Re7 {[%clk
0:00:32.1]} 35. Kg1 {[%clk 0:00:28.2]} 35... Rxe6 {[%clk 0:00:30.1]} 36. dxe6
{[%clk 0:00:29.1]} 36... Qe7 {[%clk 0:00:30.6]} 37. Qc4 {[%clk 0:00:24.8]} 37...
d3 {[%clk 0:00:26.6]} 38. Bf1 {[%clk 0:00:16.7]} 38... d2 {[%clk 0:00:25.6]} 39.
Be2 {[%clk 0:00:17]} 39... Bc5 {[%clk 0:00:20.2]} 40. Bf3 {[%clk 0:00:11.8]}
40... Ka7 {[%clk 0:00:16.4]} 41. Qd5 {[%clk 0:00:10.8]} 41... c6 {[%clk
0:00:11.7]} 42. bxc6 {[%clk 0:00:10.6]} 42... bxc6 {[%clk 0:00:05.9]} 43. Qxc6
{[%clk 0:00:08.3]} 43... d1=Q+ {[%clk 0:00:05.1]} 44. Bxd1 {[%clk 0:00:08.4]}
44... Qxe6 {[%clk 0:00:05]} 45. Qc7+ {[%clk 0:00:07.9]} 45... Ka6 {[%clk
0:00:03.8]} 46. Qc6+ {[%clk 0:00:06.9]} 46... Ka7 {[%clk 0:00:03.5]} 47. Qc7+
{[%clk 0:00:06.4]} 47... Ka6 {[%clk 0:00:03.6]} 48. Qc6+ {[%clk 0:00:06.3]}
48... Bb6 {[%clk 0:00:04.2]} 49. Qc2 {[%clk 0:00:03.1]} 49... Qe1+ {[%clk
0:00:02.9]} 50. Kg2 {[%clk 0:00:03.4]} 50... Qe6 {[%clk 0:00:01.7]} 51. Kh2
{[%clk 0:00:02.6]} 51... Kb7 {[%clk 0:00:02.1]} 52. Bf3+ {[%clk 0:00:02]} 52...
Kb8 {[%clk 0:00:01.1]} 53. Qc6 {[%clk 0:00:02]} 1-0